bitfinex-derivatives/quotes_SOLF0:USTF0_20220106
["timestamp","ask_amount","ask_price","bid_price","bid_amount"]
[1641492285172,6.56512605,152.3,152.24,27.66479]
[1641492285370,20.43845181,152.3,152.24,27.66479]
[1641492285570,20.43845181,152.3,152.24,20.25063441]
[1641492285970,20.43845181,152.3,152.22,67.8861]
[1641492285971,3.19947795,152.29,152.22,67.8861]
[1641492286470,3.19947795,152.29,152.22,95.55089]
[1641492286671,3.19947795,152.29,152.23,1.42536712]
[1641492288372,17.07280371,152.29,152.23,1.42536712]
[1641492289473,17.07280371,152.29,152.24,4.0]
[1641492290273,3.19947795,152.29,152.25,15.32511394]
[1641492290473,3.19947795,152.29,152.27,27.66479]
[1641492291373,3.19947795,152.29,152.28,1.42536712]
[1641492291973,6.56512605,152.3,152.28,1.42536712]
[1641492292173,13.87332576,152.32,152.28,1.42536712]
[1641492293074,13.87332576,152.32,152.28,5.42536712]
[1641492293274,0.4238955,152.32,152.29,4.0]
[1641492293473,0.4238955,152.32,152.29,9.543]
[1641492293674,26.2605042,152.33,152.3,4.0]
[1641492293874,14.59624959,152.33,152.29,5.543]
[1641492294073,14.59624959,152.33,152.3,4.0]
[1641492294478,14.59624959,152.33,152.3,31.66479]
[1641492296077,14.59624959,152.33,152.31,6.89994286]
[1641492299386,14.59624959,152.33,152.32,4.0]
[1641492299586,4.959e-05,152.33,152.32,4.0]
[1641492299786,4.959e-05,152.33,152.31,80.83294286]
[1641492299988,4.959e-05,152.33,152.31,84.83294286]
[1641492300790,4.959e-05,152.33,152.32,6.89994286]
[1641492301092,4.959e-05,152.33,152.32,10.89994286]
[1641492302191,4.959e-05,152.33,152.32,6.89994286]
[1641492302591,4.959e-05,152.33,152.31,6.89994286]
[1641492302793,4.959e-05,152.33,152.32,4.0]
[1641492303194,4.6299597,152.38,152.32,4.0]
[1641492303395,11.6234108,152.44,152.37,4.0]
[1641492303596,11.6234108,152.44,152.38,4.0]
[1641492303794,11.6234108,152.44,152.37,10.4]
[1641492304195,11.6234108,152.45,152.37,10.4]
[1641492304597,11.6234108,152.45,152.4,27.66479]
[1641492304797,11.6234108,152.45,152.43,4.0]
[1641492304998,11.6234108,152.45,152.43,8.727]
[1641492305699,11.6234108,152.45,152.44,4.0]
[1641492306101,11.6234108,152.45,152.43,8.727]
[1641492306299,48.69689522,152.5,152.43,8.727]
[1641492306500,48.69689522,152.5,152.43,32.39179]
[1641492307701,11.6234108,152.5,152.43,32.39179]
[1641492308702,52.69689522,152.51,152.43,32.39179]
[1641492308901,52.69689522,152.51,152.43,27.66479]
[1641492309100,4.0,152.47,152.4,27.66479]
[1641492309300,8.955,152.47,152.4,27.66479]
[1641492309601,4.955,152.47,152.4,27.66479]
[1641492310201,37.07348442,152.48,152.4,27.66479]
[1641492310601,68.73827442,152.48,152.4,27.66479]
[1641492310802,37.07348442,152.47,152.4,27.66479]
[1641492311703,11.6234108,152.47,152.4,27.66479]
[1641492313805,48.69689522,152.47,152.4,27.66479]
[1641492314604,48.69689522,152.47,152.4,55.32958]
[1641492314805,11.6234108,152.47,152.4,55.32958]
[1641492317007,11.6234108,152.5,152.4,55.32958]
[1641492317206,15.6234108,152.5,152.4,55.32958]
[1641492317407,4.0,152.46,152.4,55.32958]
[1641492317612,10.581,152.46,152.4,55.32958]
[1641492317808,10.581,152.46,152.4,27.66479]
[1641492318008,6.581,152.46,152.4,27.66479]
[1641492318509,37.07348442,152.49,152.4,27.66479]
[1641492318709,68.73827442,152.49,152.4,27.66479]
[1641492319210,37.07348442,152.48,152.4,27.66479]
[1641492319410,41.07348442,152.48,152.4,27.66479]
[1641492319609,37.07348442,152.48,152.4,27.66479]
[1641492320112,48.69689522,152.48,152.4,27.66479]
[1641492320512,52.69689522,152.48,152.4,27.66479]
[1641492320913,4.0,152.47,152.4,27.66479]
[1641492321112,15.6234108,152.48,152.4,27.66479]
[1641492321513,11.6234108,152.48,152.4,27.66479]
[1641492321912,48.69689522,152.48,152.4,27.66479]
[1641492322814,11.6234108,152.48,152.4,27.66479]
[1641492324316,37.07348442,152.49,152.4,27.66479]
[1641492324518,13.88225238,152.5,152.43,13.88225238]
[1641492324719,13.88225238,152.5,152.43,41.54704238]
[1641492325518,13.88225238,152.49,152.43,27.66479]
[1641492327423,13.88225238,152.5,152.43,27.66479]
[1641492328323,13.88225238,152.5,152.43,41.54704238]
[1641492331929,4.0,152.47,152.43,41.54704238]
[1641492332129,9.29,152.47,152.43,13.88225238]
[1641492332531,4.0,152.46,152.43,13.88225238]
[1641492332731,4.0,152.46,152.44,1.43116486]
[1641492332931,5.29,152.47,152.44,1.43116486]
[1641492333532,3.19633202,152.46,152.4,13.88225238]
[1641492336130,17.88225238,152.47,152.4,13.88225238]
[1641492336131,17.0785844,152.47,152.4,13.88225238]
[1641492338633,13.88225238,152.46,152.39,13.88225238]
[1641492342140,4.0,152.44,152.39,13.88225238]
[1641492342337,10.426,152.44,152.39,13.88225238]
[1641492342540,4.0,152.43,152.38,22.21498033]
[1641492343340,4.0,152.43,152.38,15.31341724]
[1641492343542,3.19633202,152.42,152.38,1.43116486]
[1641492344544,3.19633202,152.43,152.38,13.88225238]
[1641492346244,31.66479,152.44,152.38,13.88225238]
[1641492347146,3.19830706,152.43,152.38,13.88225238]
[1641492347947,31.66479,152.44,152.38,13.88225238]
[1641492348248,27.66479,152.44,152.38,13.88225238]
[1641492348449,27.66479,152.44,152.38,20.36925238]
[1641492348949,3.19841487,152.43,152.38,20.36925238]
[1641492349849,3.19841487,152.43,152.38,13.88225238]
[1641492350254,4.0,152.44,152.38,13.88225238]
[1641492350450,4.0,152.44,152.39,1.43116486]
[1641492350852,31.66479,152.44,152.39,1.43116486]
[1641492351052,3.19835939,152.43,152.38,13.88225238]
[1641492352051,4.0,152.44,152.38,13.88225238]
[1641492352755,3.19830329,152.43,152.37,22.21505562]
[1641492353454,4.0,152.39,152.37,5.562e-05]
[1641492353654,9.971,152.39,152.34,27.66479]
[1641492354054,5.971,152.39,152.34,27.66479]
[1641492354859,61.1439,152.42,152.34,27.66479]
[1641492355059,61.1439,152.42,152.34,33.16979]
[1641492358363,61.1439,152.42,152.34,27.66479]
[1641492359963,31.66479,152.44,152.34,27.66479]
[1641492361163,4.0,152.43,152.34,27.66479]
[1641492362763,27.66479,152.44,152.34,27.66479]
[1641492362964,27.66479,152.4,152.34,27.66479]
[1641492364066,27.66479,152.4,152.39,4.62967769]
[1641492364865,27.66479,152.4,152.39,7.769e-05]
[1641492365066,27.66479,152.4,152.38,7.769e-05]
[1641492365867,27.66479,152.4,152.34,27.66479]
[1641492366568,27.66479,152.44,152.34,27.66479]
[1641492366767,27.66479,152.44,152.34,34.59479]
[1641492367268,31.66479,152.44,152.34,34.59479]
[1641492367768,4.0,152.43,152.34,34.59479]
[1641492369469,4.0,152.42,152.34,34.59479]
[1641492369870,4.0,152.41,152.34,34.59479]
[1641492370071,4.0,152.4,152.34,34.59479]
[1641492370272,4.0,152.41,152.34,34.59479]
[1641492370472,64.73827442,152.44,152.34,34.59479]
[1641492370677,4.0,152.41,152.34,34.59479]
[1641492371274,4.0,152.42,152.34,34.59479]
[1641492371672,4.0,152.41,152.34,34.59479]
[1641492373373,4.0,152.42,152.34,34.59479]
[1641492374173,4.0,152.41,152.34,34.59479]
[1641492376176,4.0,152.4,152.34,34.59479]
[1641492376375,4.0,152.41,152.34,34.59479]
[1641492376876,4.0,152.42,152.34,34.59479]
[1641492377077,27.66479,152.41,152.34,34.59479]
[1641492378178,31.66479,152.41,152.32,62.6979]
[1641492378477,4.0,152.37,152.25,59.69463532]
[1641492378679,4.0,152.33,152.25,55.69463532]
[1641492378879,9.933,152.33,152.25,55.69463532]
[1641492379282,4.0,152.31,152.25,55.69463532]
[1641492379681,4.0,152.32,152.24,18.09374984]
[1641492380380,4.0,152.29,152.24,18.09374984]
[1641492381383,27.66479,152.31,152.24,18.09374984]
[1641492381582,31.66479,152.31,152.24,6.88359761]
[1641492381783,4.0,152.3,152.24,6.88359761]
[1641492382883,4.0,152.28,152.24,6.88359761]
[1641492383083,31.66479,152.28,152.24,6.88359761]
[1641492383483,27.66479,152.28,152.24,6.88359761]
[1641492384483,31.66479,152.31,152.24,6.88359761]
[1641492384683,27.66479,152.31,152.25,13.86719691]
[1641492385584,27.66479,152.31,152.27,13.86719691]
[1641492386086,27.66479,152.31,152.27,19.07319691]
[1641492386485,41.53198691,152.34,152.27,19.07319691]
[1641492386885,45.53198691,152.34,152.27,19.07319691]
[1641492387085,4.0,152.33,152.27,19.07319691]
[1641492387285,31.66479,152.34,152.3,13.86719691]
[1641492387585,27.66479,152.34,152.3,13.86719691]
[1641492387986,31.66479,152.34,152.3,13.86719691]
[1641492388385,4.0,152.33,152.29,13.86719691]
[1641492388585,4.0,152.32,152.29,13.86719691]
[1641492388787,4.0,152.33,152.29,13.86719691]
[1641492388987,27.66479,152.31,152.29,13.86719691]
[1641492389185,27.66479,152.31,152.27,13.86719691]
[1641492389687,31.66479,152.31,152.27,13.86719691]
[1641492390087,31.66479,152.31,152.28,13.86719691]
[1641492390387,27.66479,152.31,152.28,13.86719691]
[1641492391590,27.66479,152.31,152.24,18.11680151]
[1641492391591,27.66479,152.31,152.29,13.86719691]
[1641492392292,27.66479,152.31,152.28,13.86719691]
[1641492394192,31.66479,152.31,152.28,13.86719691]
[1641492396593,27.66479,152.31,152.28,13.86719691]
[1641492397594,27.66479,152.31,152.27,13.86719691]
[1641492398597,31.66479,152.31,152.24,1.42876076]
[1641492399096,27.66479,152.31,152.24,1.42876076]
[1641492399298,31.66479,152.34,152.24,1.42876076]
[1641492399496,27.66479,152.34,152.24,7.90076076]
[1641492400097,27.66479,152.34,152.24,11.90076076]
[1641492400297,27.66479,152.34,152.25,15.29595767]
[1641492400998,27.66479,152.34,152.26,27.66479]
[1641492401400,27.66479,152.34,152.3,13.86719691]
[1641492401599,27.66479,152.34,152.3,19.58219691]
[1641492402198,4.0,152.35,152.31,15.29595767]
[1641492402398,4.0,152.34,152.31,15.29595767]
[1641492402598,62.8718,152.36,152.31,15.29595767]
[1641492402599,66.8718,152.36,152.31,15.29595767]
[1641492402797,4.0,152.34,152.31,15.29595767]
[1641492403198,4.0,152.34,152.29,13.86719691]
[1641492403398,4.0,152.3,152.29,13.86719691]
[1641492403599,4.0,152.33,152.29,13.86719691]
[1641492404198,4.0,152.35,152.28,22.14295802]
[1641492405099,27.66479,152.33,152.28,22.14295802]
[1641492405299,27.66479,152.33,152.29,13.86719691]
[1641492407103,4.0,152.35,152.29,13.86719691]
[1641492408002,3.20192696,152.34,152.3,13.86719691]
[1641492409005,3.20192696,152.34,152.29,13.86719691]
[1641492410706,3.20192696,152.34,152.26,19.50851376]
[1641492410707,90.53659,152.36,152.3,13.86719691]
[1641492411510,3.20182895,152.35,152.3,13.86719691]
[1641492413507,7.20182895,152.35,152.3,13.86719691]
[1641492413707,3.20182895,152.35,152.3,13.86719691]
[1641492413911,3.20182895,152.35,152.31,13.86719691]
[1641492414311,3.20182895,152.35,152.31,18.78619691]
[1641492415014,3.20182895,152.35,152.31,4.919]
[1641492415611,31.66479,152.36,152.32,1.42876076]
[1641492416511,31.66479,152.36,152.29,13.86719691]
[1641492416512,3.2017166,152.35,152.29,13.86719691]
[1641492416711,7.2017166,152.35,152.3,13.86719691]
[1641492417111,3.2017166,152.35,152.3,13.86719691]
[1641492417311,31.66479,152.36,152.3,13.86719691]
[1641492417512,3.2019471,152.34,152.29,13.86719691]
[1641492418217,3.20193598,152.35,152.29,13.86719691]
[1641492418617,3.20193598,152.35,152.29,17.86719691]
[1641492418816,3.20193598,152.35,152.29,13.86719691]
[1641492419018,59.69463532,152.44,152.3,17.86719691]
[1641492419317,13.89143761,152.37,152.33,27.66479]
[1641492419521,13.89143761,152.37,152.33,32.56579]
[1641492420316,37.07348442,152.41,152.33,32.56579]
[1641492420518,13.88906328,152.4,152.34,1.42886927]
[1641492421422,13.88906328,152.4,152.33,41.53198691]
[1641492422224,14.82213435,152.41,152.33,41.53198691]
[1641492422424,14.82213435,152.41,152.34,1.42908]
[1641492423024,13.88841537,152.4,152.33,41.53198691]
[1641492423826,14.82213435,152.41,152.34,1.42909254]
[1641492424028,18.82213435,152.41,152.34,1.42909254]
[1641492424626,17.08911146,152.4,152.34,1.42909254]
[1641492424827,23.54211146,152.4,152.34,1.42909254]
[1641492425227,27.66479,152.39,152.34,1.42909254]
[1641492425629,30.8653307,152.39,152.36,4.62960596]
[1641492426029,3.2005407,152.39,152.36,4.62960596]
[1641492426429,6.453,152.4,152.33,13.86719691]
[1641492426629,6.453,152.4,152.32,6.0270591]
[1641492427131,31.66479,152.42,152.32,6.0270591]
[1641492427533,27.66479,152.42,152.33,4.59796656]
[1641492428535,3.2000259,152.41,152.38,4.59796656]
[1641492429840,13.79389969,152.42,152.35,17.86719691]
[1641492430037,27.66479,152.46,152.4,4.62871171]
[1641492430038,13.79389969,152.44,152.4,4.62871171]
[1641492430740,13.79389969,152.44,152.39,10.169]
[1641492430939,50.86738411,152.47,152.43,4.62764485]
[1641492431139,13.79389969,152.47,152.43,10.72564485]
[1641492432041,14.81178359,152.48,152.43,6.098]
[1641492432342,13.88208668,152.48,152.44,6.05645477]
[1641492433441,3.19818737,152.5,152.43,6.098]
[1641492433642,17.07797166,152.5,152.47,4.62659476]
[1641492434742,66.552,152.51,152.43,13.86719691]
[1641492434945,13.87988639,152.49,152.46,6.05628949]
[1641492435845,14.80807684,152.5,152.45,4.62691325]
[1641492436644,13.88008578,152.49,152.46,4.62669526]
[1641492437546,17.07724995,152.5,152.42,22.19364387]
[1641492438345,13.87994049,152.49,152.45,4.62688371]
[1641492438545,19.78494049,152.49,152.45,4.62688371]
[1641492439246,17.07724995,152.48,152.42,1.4296038]
[1641492440050,33.56979,152.49,152.44,4.62721389]
[1641492440249,27.66479,152.49,152.44,4.62721389]
[1641492440849,17.07936075,152.48,152.41,106.84728691]
[1641492441649,17.07936075,152.48,152.44,4.62723037]
[1641492442451,17.07936075,152.48,152.41,92.98009]
[1641492443250,17.07936075,152.48,152.44,4.62746802]
[1641492444051,27.66479,152.49,152.42,1.42949284]
[1641492445353,3.19772495,152.48,152.45,4.6272595]
[1641492446053,13.8817785,152.48,152.42,1.42949284]
[1641492446953,3.19782126,152.48,152.45,4.62733975]
[1641492447553,27.66479,152.49,152.42,1.42949284]
[1641492447759,13.88199278,152.48,152.42,1.42949284]
[1641492448656,3.19783844,152.48,152.45,4.62735408]
[1641492449354,13.88300937,152.47,152.43,4.62766979]
[1641492450356,42.47669997,152.5,152.44,4.62763285]
[1641492450357,14.81190997,152.49,152.44,4.62763285]
[1641492451055,13.88263703,152.48,152.42,27.66479]
[1641492452056,13.88263703,152.47,152.44,4.62761112]
[1641492452656,14.81190997,152.49,152.43,4.62774015]
[1641492452860,18.81190997,152.49,152.43,4.62774015]
[1641492453561,3.1982173,152.48,152.41,63.8079]
[1641492453763,4.0,152.46,152.4,41.53198691]
[1641492454161,107.75176927,152.47,152.4,41.53198691]
[1641492454762,111.75176927,152.47,152.4,41.53198691]
[1641492455061,17.08159657,152.45,152.41,6.0575999]
[1641492456165,17.08159657,152.45,152.4,27.66479]
[1641492456166,11.61369267,152.46,152.4,27.66479]
[1641492456366,14.81261601,152.46,152.42,4.62825816]
[1641492457267,14.81261601,152.46,152.4,27.66479]
[1641492457469,13.88475282,152.45,152.41,1.42933626]
[1641492458571,3.19892334,152.46,152.4,27.66479]
[1641492458772,17.0829299,152.46,152.43,4.62800219]
[1641492459573,41.54792843,152.47,152.44,4.62771281]
[1641492459973,13.88313843,152.47,152.44,4.62771281]
[1641492460375,71.4472,152.49,152.41,63.85064389]
[1641492460574,3.19801045,152.46,152.42,1.42944389]
[1641492461275,67.4472,152.49,152.41,76.28839691]
[1641492461476,3.19775967,152.48,152.45,4.62728843]
[1641492462274,81.3290653,152.49,152.42,1.42951813]
[1641492463175,21.07976783,152.48,152.45,4.62740748]
[1641492463376,17.07976783,152.48,152.42,1.42951813]
[1641492463576,4.0,152.46,152.42,1.42951813]
[1641492463777,4.0,152.46,152.41,13.86719691]
[1641492463778,4.0,152.45,152.41,13.86719691]
[1641492463978,31.66479,152.44,152.41,13.86719691]
[1641492464176,38.28279,152.44,152.38,13.86719691]
[1641492464878,34.28279,152.44,152.38,13.86719691]
[1641492465578,17.08520355,152.43,152.37,1.42893705]
[1641492466382,27.66479,152.44,152.37,1.42893705]
[1641492466581,41.55058784,152.44,152.37,22.19247316]
[1641492467382,3.19962445,152.43,152.37,22.19247316]
[1641492468182,13.88612857,152.43,152.37,1.42893705]
[1641492469083,3.19956788,152.43,152.37,22.19246715]
[1641492469783,93.06679,152.44,152.37,22.19246715]
[1641492470887,13.88702903,152.42,152.36,1.42893705]
[1641492471687,17.08662184,152.43,152.36,15.29613396]
[1641492472489,93.06679,152.44,152.36,15.29613396]
[1641492472689,106.95310032,152.44,152.37,13.86719691]
[1641492473390,93.06679,152.44,152.37,13.86719691]
[1641492473590,3.19984333,152.43,152.37,13.86719691]
[1641492474191,93.06679,152.44,152.37,13.86719691]
[1641492474391,106.95294746,152.44,152.37,13.86719691]
[1641492474792,110.95294746,152.44,152.37,13.86719691]
[1641492474992,7.19981729,152.43,152.37,13.86719691]
[1641492475692,8.525,152.43,152.37,13.86719691]
[1641492475893,7.19995639,152.42,152.37,13.86719691]
[1641492476093,4.0,152.41,152.37,13.86719691]
[1641492476593,7.19995639,152.42,152.37,13.86719691]
[1641492476795,4.0,152.42,152.37,13.86719691]
[1641492476995,3.20040163,152.4,152.35,13.86719691]
[1641492477894,3.20052082,152.41,152.35,13.86719691]
[1641492478893,3.20052082,152.41,152.35,17.86719691]
[1641492479095,93.06679,152.44,152.35,19.29613396]
[1641492479297,3.19951346,152.43,152.38,13.86719691]
[1641492479495,3.19951346,152.43,152.38,18.81519691]
[1641492480100,67.6976,152.45,152.39,15.29613396]
[1641492480497,71.6976,152.45,152.39,15.29613396]
[1641492481198,3.19932301,152.44,152.39,1.42893705]
[1641492481698,81.58312675,152.45,152.38,13.86719691]
[1641492482903,17.08509477,152.44,152.37,22.19252824]
[1641492483700,67.6976,152.45,152.37,22.19252824]
[1641492484201,71.6976,152.45,152.37,22.19252824]
[1641492484801,17.08529958,152.44,152.37,22.19252824]
[1641492485404,67.6976,152.45,152.37,22.19252824]
[1641492486003,71.6976,152.45,152.37,22.19252824]
[1641492486403,17.08513593,152.44,152.37,22.19252824]
[1641492487104,67.6976,152.45,152.37,22.19252824]
[1641492488103,3.1996124,152.44,152.37,22.19252824]
[1641492488304,17.08538649,152.44,152.37,22.19252824]
[1641492488906,67.6976,152.45,152.37,22.19252824]
[1641492489806,3.19879206,152.44,152.38,13.86719691]
[1641492490607,67.6976,152.45,152.38,13.86719691]
[1641492491209,3.19879069,152.44,152.38,13.86719691]
[1641492492010,67.6976,152.45,152.38,13.86719691]
[1641492492608,3.19879465,152.44,152.38,13.86719691]
[1641492493507,95.36239,152.45,152.38,13.86719691]
[1641492494107,3.19873009,152.44,152.38,13.86719691]
[1641492494908,67.6976,152.45,152.38,13.86719691]
[1641492495607,3.19880978,152.44,152.38,13.86719691]
[1641492496308,81.58136754,152.45,152.38,13.86719691]
[1641492496712,13.88376754,152.45,152.39,4.0]
[1641492497212,3.19866254,152.44,152.42,4.0]
[1641492497414,3.19866254,152.44,152.43,27.66479]
[1641492497814,6.254e-05,152.44,152.43,27.66479]
[1641492498016,37.07348442,152.49,152.43,27.66479]
[1641492498216,13.88001171,152.49,152.42,18.67919691]
[1641492499120,66.7258,152.51,152.42,18.67919691]
[1641492499319,13.87918344,152.5,152.43,13.86719691]
[1641492500022,66.7258,152.51,152.43,13.86719691]
[1641492501022,13.87887283,152.5,152.43,81.59029691]
[1641492501421,13.87887283,152.5,152.43,85.59029691]
[1641492501622,13.87887283,152.5,152.43,81.59029691]
[1641492501822,27.66479,152.52,152.43,85.59029691]
[1641492502022,13.87853339,152.51,152.44,20.76377523]
[1641492503723,27.66479,152.51,152.44,20.76377523]
[1641492504322,41.54351849,152.51,152.44,20.76377523]
[1641492504623,45.54351849,152.51,152.44,20.76377523]
[1641492504824,4.0,152.48,152.44,20.76377523]
[1641492505024,4.0,152.47,152.44,20.76377523]
[1641492505227,4.0,152.46,152.39,64.433]
[1641492505525,27.66479,152.42,152.39,64.433]
[1641492505726,34.67979,152.42,152.39,64.433]
[1641492505926,34.67979,152.42,152.36,55.69463532]
[1641492506126,34.67979,152.42,152.35,61.5947]
[1641492506327,33.74191739,152.42,152.35,61.5947]
[1641492507328,33.74191739,152.42,152.34,27.66479]
[1641492509232,26.72691739,152.42,152.34,27.66479]
[1641492510532,61.1977,152.45,152.37,4.0]
[1641492510731,61.1977,152.45,152.37,6.985]
[1641492511132,37.07348442,152.47,152.37,6.985]
[1641492511332,63.6884,152.49,152.37,75.7702]
[1641492511534,63.6884,152.49,152.4,4.0]
[1641492511736,37.07348442,152.5,152.4,4.0]
[1641492512436,37.07348442,152.5,152.44,4.0]
[1641492512637,37.07348442,152.5,152.45,4.0]
[1641492512839,27.66479,152.51,152.45,4.0]
[1641492513637,27.66479,152.51,152.45,31.66479]
[1641492514038,27.66479,152.51,152.46,4.0]
[1641492514439,27.66479,152.51,152.45,27.66479]
[1641492514638,27.66479,152.51,152.47,4.0]
[1641492515239,27.66479,152.51,152.45,27.66479]
[1641492515440,27.66479,152.53,152.5,4.0]
[1641492515639,37.07348442,152.56,152.51,27.66479]
[1641492516440,66.4158,152.6,152.51,27.66479]
[1641492516441,37.07348442,152.58,152.51,27.66479]
[1641492517443,37.07348442,152.59,152.51,27.66479]
[1641492519145,37.07348442,152.6,152.51,27.66479]
[1641492519546,37.07348442,152.6,152.54,27.66479]
[1641492520849,37.07348442,152.61,152.54,27.66479]
[1641492522848,64.73827442,152.62,152.54,27.66479]
[1641492523549,64.73827442,152.62,152.54,32.28913637]
[1641492523747,37.07348442,152.61,152.54,32.28913637]
[1641492523948,44.09648442,152.61,152.54,32.28913637]
[1641492524149,44.09648442,152.61,152.54,4.62434637]
[1641492524748,37.07348442,152.6,152.53,4.62434637]
[1641492528757,4.0,152.58,152.53,4.62434637]
[1641492528955,41.07348442,152.6,152.53,4.62434637]
[1641492529658,4.59384291,152.57,152.51,27.66479]
[1641492530657,4.59384291,152.53,152.52,4.62434637]
[1641492531559,4.59384291,152.53,152.51,27.66479]
[1641492532761,4.59384291,152.53,152.46,4.0]
[1641492533162,11.60624414,152.57,152.52,4.6248407]
[1641492535665,13.87408443,152.56,152.52,4.6248407]
[1641492537166,4.0,152.55,152.52,4.6248407]
[1641492537367,19.53808443,152.56,152.52,4.6248407]
[1641492537767,47.20287443,152.56,152.52,4.6248407]
[1641492537968,47.20287443,152.56,152.49,13.87408443]
[1641492538171,4.0,152.55,152.49,13.87408443]
[1641492538372,21.07055128,152.55,152.48,13.87408443]
[1641492538573,17.07055128,152.55,152.48,13.87408443]
[1641492539175,17.07055128,152.55,152.51,4.0]
[1641492539373,17.07055128,152.55,152.48,87.37508443]
[1641492539574,13.87351471,152.57,152.54,4.0]
[1641492539773,37.07348442,152.6,152.56,59.32958]
[1641492539974,37.07348442,152.6,152.56,55.32958]
[1641492540573,37.07348442,152.6,152.56,59.32958]
[1641492540775,37.07348442,152.65,152.56,59.32958]
[1641492541278,37.07348442,152.65,152.57,4.0]
[1641492541676,37.07348442,152.65,152.6,27.66479]
[1641492541875,48.67014431,152.67,152.6,27.66479]
[1641492542275,48.67014431,152.67,152.6,31.66479]
[1641492542677,11.59665989,152.67,152.6,31.66479]
[1641492542876,11.59665989,152.67,152.6,37.48779]
[1641492543277,11.59665989,152.67,152.61,4.0]
[1641492543676,11.59665989,152.68,152.66,27.66479]
[1641492544076,11.59665989,152.68,152.64,5.283]
[1641492544279,2.48595989,152.68,152.67,4.0]
[1641492544477,37.07348442,152.7,152.67,4.0]
[1641492544677,37.07348442,152.71,152.69,4.0]
[1641492544877,37.07348442,152.71,152.69,4.76]
[1641492545176,37.07348442,152.71,152.69,8.76]
[1641492545376,25.64258442,152.71,152.7,4.0]
[1641492545575,25.64258442,152.71,152.69,8.76]
[1641492545777,25.64258442,152.71,152.7,55.32958]
[1641492545976,55.69463532,152.76,152.7,55.32958]
[1641492546378,253.98103532,152.81,152.7,55.32958]
[1641492546579,249.98103532,152.81,152.7,55.32958]
[1641492546779,249.98103532,152.81,152.7,64.01558]
[1641492547177,249.98103532,152.81,152.71,4.0]
[1641492547377,16.49107109,152.8,152.7,60.01558]
[1641492547777,16.49107109,152.8,152.76,27.66479]
[1641492549582,27.66479,152.83,152.76,27.66479]
[1641492549984,31.66479,152.83,152.71,64.4497]
[1641492550184,4.0,152.82,152.7,27.66479]
[1641492550784,36.56379,152.83,152.7,27.66479]
[1641492551185,4.0,152.82,152.7,27.66479]
[1641492551385,36.56379,152.83,152.7,27.66479]
[1641492551990,4.0,152.82,152.7,27.66479]
[1641492552387,4.0,152.81,152.7,27.66479]
[1641492552587,92.25842532,152.83,152.7,27.66479]
[1641492552787,83.35942532,152.83,152.7,27.66479]
[1641492552993,27.66479,152.83,152.7,27.66479]
[1641492553593,31.66479,152.83,152.7,31.66479]
[1641492553792,27.66479,152.79,152.72,4.0]
[1641492553991,27.66479,152.79,152.7,31.66479]
[1641492554291,27.66479,152.79,152.71,4.0]
[1641492554492,27.66479,152.79,152.7,31.66479]
[1641492554993,27.66479,152.79,152.7,27.66479]
[1641492555196,34.71479,152.79,152.7,27.66479]
[1641492555994,7.05,152.79,152.7,27.66479]
[1641492556596,31.66479,152.83,152.7,27.66479]
[1641492556794,27.66479,152.83,152.7,27.66479]
[1641492556996,31.66479,152.83,152.7,31.66479]
[1641492557294,27.66479,152.83,152.7,31.66479]
[1641492557498,27.66479,152.83,152.73,4.0]
[1641492557998,27.66479,152.83,152.76,27.66479]
[1641492558999,63.1817,152.85,152.76,27.66479]
[1641492559699,16.47849951,152.84,152.76,27.66479]
[1641492559901,23.60949951,152.84,152.76,27.66479]
[1641492562907,16.47849951,152.84,152.76,27.66479]
[1641492563309,16.47849951,152.84,152.77,4.0]
[1641492563709,16.47849951,152.84,152.76,27.66479]
[1641492564518,28.04751025,152.84,152.76,27.66479]
[1641492565016,28.04751025,152.84,152.76,31.66479]
[1641492565217,28.04751025,152.84,152.77,4.0]
[1641492565416,28.04751025,152.84,152.76,31.66479]
[1641492565918,28.04751025,152.84,152.76,27.66479]
[1641492566117,36.93829174,152.81,152.76,31.66479]
[1641492566617,36.93829174,152.81,152.77,4.0]
[1641492566819,36.93829174,152.82,152.77,9.272]
[1641492567020,36.93829174,152.82,152.77,1.8843687]
[1641492568019,40.93829174,152.85,152.79,27.66479]
[1641492570621,13.84883822,152.81,152.79,27.66479]